Cogmind - Beta 10.1 @@@ ROGUE MODE // 2020.10.06 @ 18:43:11 Player: Enzo Result: Self-destructed Performance ------------- Evolutions (2) 1000 Regions Visited (5) 1000 Robots Destroyed (51) 255 Value Destroyed (1258) 1258 Prototype IDs (3) 60 Alien Tech Used (0) 0 Bonus (248) 248 TOTAL SCORE: 3821 Bonus ------- High Alert Combat Kills 46 Follower Combat Kills 202 Cogmind --------- Core Integrity 489/550 Matter 300/300 Energy 62/160 System Corruption 0% Temperature Cool (299) Movement Treading (160) Location -8/Materials Parts ------- > --- POWER (1) -------- Light Nuclear Core > --- PROPULSION (2) --- Light Treads Light Treads > --- UTILITY (6) ------ Small Storage Unit Small Storage Unit Makeshift Terrain Scanner Terrain Scan Processor Decoy Drone Bay (10/16) > --- WEAPON (2) ------- Precision Beam Rifle EM Pulse Cannon > --- INVENTORY (8) ---- Improved VTOL Module Improved VTOL Module Improved VTOL Module Signal Interpreter Makeshift Terrain Scanner Mining Laser Peak State ------------ > --- POWER ------------ Light Nuclear Core > --- PROPULSION ------- Light Treads Improved VTOL Module > --- UTILITY ---------- Small Storage Unit Small Storage Unit Makeshift Terrain Scanner Terrain Scan Processor Decoy Drone Bay > --- WEAPON ----------- Precision Beam Rifle EM Pulse Cannon > --- INVENTORY -------- Light Treads Signal Interpreter Makeshift Terrain Scanner Mining Laser [Rating: 37] Favorites ----------- Power Light Ion Engine Engine Light Ion Engine Power Core Light Nuclear Core Propulsion Light Treads Treads Light Treads Flight Unit Improved VTOL Module Utility Small Storage Unit Device Makeshift Terrain Scanner Storage Small Storage Unit Processor Terrain Scan Processor Weapon Makeshift Hammer Energy Gun Particle Gun Energy Cannon EM Pulse Cannon Ballistic Gun Assault Rifle Impact Weapon Makeshift Hammer Build | -11 -10 -10 -10 -9 -8 ------- Run | Scr Mat Min Exi Min Mat Slots Evolved 4 | . . . . . 4 Power . | . . . . . . Propulsion . | . . . . . . Utility 4 | . . . . . 4 Weapon . | . . . . . . Parts Attached 27 | 6 7 . 3 . 11 Power 2 | 1 . . . . 1 Engine 1 | 1 . . . . . Core 1 | . . . . . 1 Reactor . | . . . . . . Propulsion 9 | 2 2 . 1 . 4 Treads 8 | 2 2 . 1 . 3 Leg . | . . . . . . Wheel . | . . . . . . Hover . | . . . . . . Flight 1 | . . . . . 1 Utility 6 | 1 2 . . . 3 Device 3 | . 1 . . . 2 Storage 2 | 1 1 . . . . Processor 1 | . . . . . 1 Hackware . | . . . . . . Protection . | . . . . . . Artifact . | . . . . . . Weapon 10 | 2 3 . 2 . 3 Energy Gun 5 | 2 2 . . . 1 Energy Cannon 1 | . . . . . 1 Ballistic Gun 2 | . 1 . . . 1 Ballistic Cannon . | . . . . . . Launcher . | . . . . . . Special Weapon . | . . . . . . Impact Weapon 2 | . . . 2 . . Slashing Weapon . | . . . . . . Piercing Weapon . | . . . . . . Special Melee Weapon . | . . . . . . Unidentified Prototypes 3 | . . . . . 3 Parts Lost 5 | . 3 . . . 2 Power . | . . . . . . Propulsion 1 | . . . . . 1 Utility . | . . . . . . Weapon 4 | . 3 . . . 1 Highest Loss Streak 1 | . 1 . . . 1 Average Slot Usage (%) 97 | . 98 100 98 100 85 Engine 12 | . 14 14 14 14 1 Treads 26 | . 28 28 28 28 16 Device 2 | . . . . . 17 Storage 26 | . 27 28 28 28 18 Processor 1 | . . . . . 9 Energy Gun 15 | . 20 28 14 . 3 Energy Cannon 1 | . . . . . 8 Ballistic Gun 2 | . 6 . . . 2 Impact Weapon 6 | . . . 11 28 2 Naked Turns . | . . . . . . Heaviest Build 38 | 11 16 15 17 17 38 Greatest Support 40 | 40 40 40 40 40 40 Greatest Overweight (x) 1 | 1 . . . . 1 Average Overweight (x) . | . . . . . . Largest Inventory Capacity 8 | 6 8 8 8 8 8 Average Capacity 7 | 5 7 8 8 8 8 Most Carried 8 | 3 5 6 7 8 7 Average Carried 5 | 1 4 5 6 7 4 Final Capacity 8 | 6 8 8 8 8 8 Final Carried 8 | 3 5 6 7 8 6 Class Distribution -------------------- 37% | Mutant 37% | Scavenger-Mutant 24% | Commander-Mutant Dominant Class ---------------- Mutant | -10/Materials Scavenger-Mutant | -10/Mines Scavenger-Mutant | -10/Exiles Commander-Mutant | -9/Mines Scavenger-Mutant | -8/Materials Resources | -11 -10 -10 -10 -9 -8 ----------- Run | Scr Mat Min Exi Min Mat Matter Collected 600 | 260 145 . 30 . 165 Remotely . | . . . . . . Salvage Created 1901 | 92 783 104 236 11 675 Parts 105 | 3 48 13 5 1 35 Haulers Intercepted 3 | . 2 . . . 1 Recyclers Shooed . | . . . . . . Parts Field Recycled . | . . . . . . Retrieved Matter . | . . . . . . Parts Self-Destructed . | . . . . . . Prevented . | . . . . . . Kills | -11 -10 -10 -10 -9 -8 ------- Run | Scr Mat Min Exi Min Mat Combat Hostiles Destroyed 30 | . 11 3 . 1 15 Guns 15 | . 11 3 . . 1 Cannons 8 | . . . . . 8 AOE 6 | . . . . . 6 Classes Destroyed 10 | 2 6 1 . . 1 Worker 4 | . . 3 . . 1 Builder 5 | . 3 . . . 2 Tunneler 1 | 1 . . . . . Hauler 3 | . 2 . . . 1 Recycler 3 | 1 2 . . . . Operator 2 | . 1 . . . 1 Watcher 3 | . 3 . . . . Swarmer 10 | . 3 3 . 1 3 Grunt 19 | . 8 . . . 11 Sentry 1 | . . . . . 1 Best Kill Streak 9 | 1 4 6 . 1 9 Combat Bots Only 6 | . 3 3 . 1 6 Max Kills in Single Turn 4 | 1 1 2 . 1 4 Gunslinging . | . . . . . . Exploded 4 | . . . . . 4 Melee . | . . . . . . Uniques/NPCs Destroyed . | . . . . . . Combat | -11 -10 -10 -10 -9 -8 -------- Run | Scr Mat Min Exi Min Mat Damage Taken 1295 | . 492 39 . 78 686 Core 128 | . 53 14 . . 61 Absorbed by Shields . | . . . . . . Core Remaining (%) 86 | 100 . . . 73 . Volleys Fired 109 | 3 60 6 . . 40 Largest 2 | 2 2 2 . . 2 Hottest 124 | 90 90 105 . . 124 Shots Fired 183 | 6 101 12 . . 64 Gun 147 | 6 101 12 . . 28 Cannon 36 | . . . . . 36 Launcher . | . . . . . . Special . | . . . . . . Kinetic 46 | . 30 . . . 16 Thermal 80 | 3 53 12 . . 12 Explosive . | . . . . . . Electromagnetic 57 | 3 18 . . . 36 Robot Hit Streak 12 | 5 12 4 . . 12 Robot Miss Streak 5 | . 3 4 . . 5 Penetration Max 1 | . . . . . 1 Secondary Targets 1 | . . 1 . . . Max Gunslinging Chain 1 | . . 1 . . . Shots Hit Robots 139 | 5 68 5 14 1 46 Core Hits 75 | 3 32 6 3 . 31 Critical Hits 1 | . 1 . . . . Critical Kills . | . . . . . . Critical Parts Destroyed 1 | . 1 . . . . Melee Attacks 21 | . . . 16 1 4 Impact 21 | . . . 16 1 4 Slashing . | . . . . . . Piercing . | . . . . . . Sneak Attacks . | . . . . . . Combat Hostiles . | . . . . . . Follow-up Attacks 1 | . . . 1 . . Damage Inflicted 4753 | 68 1060 110 1384 45 2086 Guns 1523 | 68 919 110 . . 426 Cannons 678 | . . . . . 678 Explosions 1025 | . 141 . . . 884 Melee 1522 | . . . 1384 45 93 Ramming 5 | . . . . . 5 Kinetic 490 | . 252 . . . 238 Thermal 918 | 26 594 110 . . 188 Explosive 884 | . . . . . 884 Electromagnetic 934 | 42 214 . . . 678 Impact 1522 | . . . 1384 45 93 Slashing . | . . . . . . Piercing . | . . . . . . Highest Corruption . | . . . . . . Average Corruption . | . . . . . . Corruption Purged . | . . . . . . Overload Shots . | . . . . . . Overflow Damage 273 | . . . 195 5 73 Projectiles 12 | . . . . . 12 Explosions 35 | . . . . . 35 Melee 226 | . . . 195 5 26 Knockbacks 8 | . . . 7 1 . Impact 8 | . . . 7 1 . Kinetic . | . . . . . . Secondary . | . . . . . . Self-Inflicted Damage 103 | . 37 . . . 66 Shots 3 | . 2 . . . 1 Rammed 1 | . . . . . 1 Targets Rammed 1 | . . . . . 1 Kicked . | . . . . . . Crushed . | . . . . . . Highest Temperature 315 | 60 198 180 . . 315 Average Temperature 74 | 26 48 82 . . 116 Received Heat Transfer 510 | . 213 . . . 297 Effects 3 | . . . . . 3 Interference 3 | . . . . . 3 Siege Activations . | . . . . . . Robots Corrupted . | . . . . . . Combat Hostiles . | . . . . . . Parts Fried 8 | . 1 . 2 1 4 Impact Corruptions 6 | . . . 4 1 1 Robots Melted . | . . . . . . Combat Hostiles . | . . . . . . Parts Melted 2 | . 2 . . . . Heat Transferred 2026 | 74 1297 248 . . 407 Parts Sabotaged . | . . . . . . Parts Stolen . | . . . . . . Parts Stripped . | . . . . . . Power Chain Reactions 3 | . 3 . . . . Missiles Intercepted . | . . . . . . Alert | -11 -10 -10 -10 -9 -8 ------- Run | Scr Mat Min Exi Min Mat Peak Influence 660 | 10 182 113 . 117 660 Initial 45 | . 6 28 . . 45 Average 129 | 4 99 98 . 13 383 Maximum Alert Level 2 | . . . . . 2 Low Security (%) 87 | 100 100 100 . 100 24 Level 1 3 | . . . . . 21 Level 2 9 | . . . . . 53 Level 3 . | . . . . . . Level 4 . | . . . . . . Level 5 . | . . . . . . High Security . | . . . . . . Max Security . | . . . . . . Squads Dispatched 8 | . 1 . . . 7 Investigation . | . . . . . . Extermination . | . . . . . . Reinforcement 5 | . 1 . . . 4 Assault 1 | . . . . . 1 Garrison 2 | . . . . . 2 Intercept . | . . . . . . Construction Impeded 2 | . . . . . 2 Haulers Reinforced . | . . . . . . Stealth | -11 -10 -10 -10 -9 -8 --------- Run | Scr Mat Min Exi Min Mat Distress Signals 5 | . . . . 1 4 Communications Jammed . | . . . . . . Distress Signals . | . . . . . . Times Spotted 58 | . 16 3 . 4 35 Peak Tracking Total 7 | . 3 3 . 4 7 Tactical Retreats 4 | . 1 . . . 3 Traps | -11 -10 -10 -10 -9 -8 ------- Run | Scr Mat Min Exi Min Mat Traps Triggered . | . . . . . . Indirectly . | . . . . . . Trap Hack Attempts . | . . . . . . Triggered . | . . . . . . Disarmed . | . . . . . . Reprogrammed . | . . . . . . Reused . | . . . . . . Traps Extracted . | . . . . . . Installed . | . . . . . . Triggered 1 | . 1 . . . . Machines | -11 -10 -10 -10 -9 -8 ---------- Run | Scr Mat Min Exi Min Mat Machines Disabled 7 | . 2 . . . 5 Max in Single Turn 2 | . 1 . . . 2 Garrison Access 1 | . . . . . 1 Machines Sabotaged . | . . . . . . Garrisons Compromised . | . . . . . . Overloaded Fab Kills . | . . . . . . Fab Network Shutdowns . | . . . . . . Hacking | -11 -10 -10 -10 -9 -8 --------- Run | Scr Mat Min Exi Min Mat Machines Accessed 6 | . 5 . . 1 . Terminals 4 | . 4 . . . . Fabricators . | . . . . . . Repair Stations 1 | . 1 . . . . Recycling Units . | . . . . . . Scanalyzers . | . . . . . . Garrison Access . | . . . . . . Total Hacks 14 | . 13 . . 1 . Successful 8 | . 7 . . 1 . Failed 5 | . 5 . . . . Catastrophic 1 | . 1 . . . . Database Lockouts 1 | . 1 . . . . Manual 6 | . 6 . . . . Terminals 12 | . 12 . . . . Fabricators . | . . . . . . Repair Stations 1 | . 1 . . . . Recycling Units . | . . . . . . Scanalyzers . | . . . . . . Garrison Access . | . . . . . . Terminal Hacks 7 | . 6 . . 1 . Robot Schematic 1 | . 1 . . . . Robot Analysis 3 | . 3 . . . . Open Door 1 | . . . . 1 . Dispatch Records 1 | . 1 . . . . Patrol Status 1 | . 1 . . . . Fabricator Hacks . | . . . . . . Repair Station Hacks . | . . . . . . Recycling Unit Hacks . | . . . . . . Scanalyzer . | . . . . . . Garrison Access Hacks . | . . . . . . Unauthorized Hacks 1 | . 1 . . . . Terminals 1 | . 1 . . . . Assimilate 1 | . 1 . . . . Fabricators . | . . . . . . Repair Stations . | . . . . . . Recycling Units . | . . . . . . Scanalyzers . | . . . . . . Garrison Access . | . . . . . . Data Cores Recovered . | . . . . . . Used . | . . . . . . Hacking Detections 4 | . 4 . . . . Full Trace Events . | . . . . . . Feedback Events . | . . . . . . Feedback Blocked . | . . . . . . Robot Schematics Acquired 1 | . 1 . . . . Robots Built . | . . . . . . Matter . | . . . . . . Time . | . . . . . . Total Robot Build Rating . | . . . . . . Part Schematics Acquired . | . . . . . . Parts Built . | . . . . . . Matter . | . . . . . . Time . | . . . . . . Total Part Build Rating . | . . . . . . Parts Repaired . | . . . . . . Time . | . . . . . . Parts Recycled . | . . . . . . Recycled Matter . | . . . . . . Retrieved Matter . | . . . . . . Retrieved Components . | . . . . . . Parts Scanalyzed . | . . . . . . Part Schematics Acquired . | . . . . . . Parts Damaged . | . . . . . . Bothacking | -11 -10 -10 -10 -9 -8 ------------ Run | Scr Mat Min Exi Min Mat Used RIF Installer . | . . . . . . Robots Hacked . | . . . . . . Non-combat . | . . . . . . Combat . | . . . . . . Robot Hacks Applied . | . . . . . . Relay Couplers Released 3 | . . . . . 3 Machine Destruction 3 | . . . . . 3 Robots Rewired 5 | . . . 5 . . Allies Hacked . | . . . . . . Hacks Repelled . | . . . . . . Allies | -11 -10 -10 -10 -9 -8 -------- Run | Scr Mat Min Exi Min Mat Total Allies 8 | . . . 5 3 . Largest Group 8 | . . . 5 8 5 Highest-Rated Group 106 | . . . 66 106 82 Highest-Rated Ally 21 | . . . 21 21 21 Total Orders . | . . . . . . Ally Attacks 43 | . . . . 13 30 Total Damage 772 | . . . . 236 536 Kills 12 | . . . . 5 7 Allies Corrupted 1 | . . . . . 1 Allies Melted . | . . . . . . Intel | -11 -10 -10 -10 -9 -8 ------- Run | Scr Mat Min Exi Min Mat Robot Analysis Total 3 | . 3 . . . . Derelict Logs Recovered 1 | . . 1 . . . Drone Launches 6 | . . . . . 6 Drone Recoveries . | . . . . . . Exploration | -11 -10 -10 -10 -9 -8 ------------- Run | Scr Mat Min Exi Min Mat Turns Passed 2705 | 135 1003 190 781 266 330 Spaces Moved 1356 | 79 496 105 428 146 102 Core 15 | 15 . . . . . Treads 1341 | 64 496 105 428 146 102 Legs . | . . . . . . Wheels . | . . . . . . Hover . | . . . . . . Flight . | . . . . . . Fastest Speed 50 | 50 160 160 160 160 160 Average Speed 159 | 143 160 160 160 160 161 Slowest Speed 180 | 160 160 160 160 160 180 Overloaded Moves . | . . . . . . Propulsion Burnouts . | . . . . . . Robots Hopped . | . . . . . . Cave-ins Triggered . | . . . . . . Exploration Rate (%) 42 | 6 65 21 89 29 42 Regions Visited 5 Branch Regions 3 Pre-discovered Areas . | . . . . . . Known Exits Taken . | . . . . . . Unknown Exits Taken 5 | 1 1 1 1 1 . Scrap Searched 1 | . . . . 1 . Spaces Dug . | . . . . . . Terrain Destroyed 39 | . 14 . . . 25 Melee . | . . . . . . Projectile 2 | . . . . . 2 AOE 37 | . 14 . . . 23 Terrain Rammed . | . . . . . . Walls Destroyed . | . . . . . . Machines Disabled . | . . . . . . Actions | -11 -10 -10 -10 -9 -8 --------- Run | Scr Mat Min Exi Min Mat Total 1697 | 92 603 115 512 178 197 Wait 103 | 2 36 4 1 30 30 Move 1351 | 78 495 104 427 145 102 Hop . | . . . . . . Pick Up 13 | 3 2 1 2 1 4 Fast Attach 16 | 6 4 . 2 . 4 Attach 5 | . 1 . . . 4 Detach 1 | . 1 . . . . Swap 6 | . 2 . 1 . 3 Drop 12 | . 2 . 4 1 5 Fire 109 | 3 60 6 . . 40 Melee 18 | . . . 13 1 4 Ram . | . . . . . . Kick . | . . . . . . Crush 1 | . . . . . 1 Escape Stasis . | . . . . . . Rewire 62 | . . . 62 . . Trap . | . . . . . . Miscellaneous . | . . . . . . Route ------- -11/Scrapyard -10/Materials (discovered 3 exits: [*Mat] / [*Min x2]) -10/Mines (discovered 2 exits: [*Mat] / *Exi) -10/Exiles -9/Mines -8/Materials (discovered 3 exits: *Fac x2 / [*Sto]) History --------- Turn | Location | Event 12 | -11/Scrapyard | Discovered new exit (range 15) 136 | -11/Scrapyard | Entered Materials 137 | -10/Materials | Discovered new exit (range 15) 307 | -10/Materials | Build established: Mutant 334 | -10/Materials | Discovered new exit (range 5) 409 | -10/Materials | Discovered new exit (range 10) 637 | -10/Materials | Central database locked down 1139 | -10/Materials | Entered Mines 1155 | -10/Mines | Learned location of 1 exit from Materials 1162 | -10/Mines | Discovered new exit (range 5) 1321 | -10/Mines | Deemed a non-threat by the Exiles lab entrance 1322 | -10/Mines | Discovered new exit (range 5) 1329 | -10/Mines | Entered Exiles 1329 | -10/Exiles | Found Exiles lab destroyed 1338 | -10/Exiles | Build established: Scavenger-Mutant 2054 | -10/Exiles | Build established: Commander-Mutant 2090 | -10/Exiles | Discovered new exit (range 12) 2110 | -10/Exiles | Entered Mines 2110 | -9/Mines | Accompanied by 5 allies 2143 | -9/Mines | Assembled infested the area 2148 | -9/Mines | Assisted by a Guerilla fighting off Assembled 2188 | -9/Mines | Found the Drone Emporium 2195 | -9/Mines | Found Prototype Device 2247 | -9/Mines | Assisted by bots powering up and referring to "LRC-V3" 2329 | -9/Mines | Discovered new exit (range 7) 2376 | -9/Mines | Entered Materials 2376 | -8/Materials | Accompanied by 5 allies 2376 | -8/Materials | Evolved 4 slots: Utility x4 2377 | -8/Materials | Identified exit to Factory 2400 | -8/Materials | Identified Decoy Drone Bay 2420 | -8/Materials | Garrison activated, responded to threat 2445 | -8/Materials | Discovered exit to Factory (range 69) 2505 | -8/Materials | Discovered new exit (range 57) 2706 | -8/Materials | Self-destructed Last Messages --------------- 02614_ U-05 Engineer lays Concrete. 02616_ U-05 Engineer builds a Wall. 02631_ Transport Network Coupler fried. 02631_ Weight Redist. System fried. 02631_ A-02 Transporter destroyed. 02642_ G-47 Trooper destroyed. 02647_ Acquired Prototype Flight Unit. 02648_ Identified Imp. VTOL Module. 02651_ Acquired 20 matter. 02654_ Acquired Imp. VTOL Module. 02662_ W-25 Informer sends out distress signal. 02674_ G-47 Trooper destroyed. 02702_ K-01 Serf collects debris. 02704_ G-47 Trooper misfires. 02705_ C-30 ARC bursts open, deploying its payload. 02705_ G-50 Soldier unfolds itself. 02705_ B-36 Bruiser unfolds itself. 02705_ G-47 Trooper unfolds itself. 02705_ I-25 Savior unfolds itself. 02706_ K-01 Serf collects debris. Map ----- +----------------------------------------------------+ | ????????????????????? ??? ?#?????????????????????? | | ????????????????#?????? ?????????????????????????? | | ???????????? ?????#??????????"???????????????????? | | ?????????????? ????????? ??????????????####??????? | | ???????????????????????????????????????# ####??? | | ??????????????? ??????? ?? ??? ??+??????? #??? | | ????????????? ????#??????????#????? ?????? #??? | | ????????#?????#?? ????????#??##?#? ??######## #### | | ????????#?????????#?? ? ?#?########???# | | ??????????????#?? ??? ??############### | | ?????????????#????# ? #########??#### | | ???????#??#???##??# ?## ######## ######## | | ???????????##"""# # ## """ ######## ###??#?? | | ?????????#??#"G"# # # """ #?###### #?###??? | | ?????? ????##"! # ######## """ ######## ######?? | | ?????????#?# !! # ######## # ? | | ?????????#?# =%* # # # # """ ? | | ?????????#?# [ !== + ?# """ # # """ ? | | ??????? ? #== % !== # # "T" + + ?""??? | | ????? ? #= === # # # # ? ? | | ?????? ??? # % %= # # # # ??? ? | | ?????? ? # *|*=[!=# # # #######? | | ??????? # ===%%*# ?######## #####?##?# | | ???????? # %!%[###########= ###?#?## | | ????????#+## b =[[!gk###########% ###????# | | ??????# b g %=[%=[@=a=%!%! t =*" ##??###? | | ??????# ig %|!=/=%*!%=*[% == T ######?# | | ????????#+## #### [!#############= ##?###?? | | ?????? ??##### #""%#=########### ######?? | | ???????? ? ##?###############################??##? | | ?????? ? ##?###### ##########?###?#########?##?? | | ???????? ? #?#?######################?####??##?### | | ?????????#?#######?#######################?####?## | | | | | | | | | | | | | | | | | | | | | | | | | | | | | | | | | | | +----------------------------------------------------+ Best States ------------- Heat Dissipation 31 Energy Generation 14 Energy Capacity 160 Matter Stores 300 Matter Capacity 300 Sight Range 16 Terrain Scan Range 18 Terrain Scan Density 85 Evasion (%) 40 Recoil Reduction 2 Item Schematics ----------------- None Robot Schematics ------------------ O-16 Technician | -10/Materials | Hacked Fabricated ------------ Nothing Alien Tech Used ----------------- None Achievements -------------- None Challenges ------------ None Game ------ Seed ZioniteCouplerKit Manual? 0 Play Time 00:20:09 Cumulative 46.2 hours Start 2020.10.05 @ 13:35:58 End 2020.10.06 @ 18:43:11 Sessions 3 Manual Loads 0 Difficulty Rogue Special Mode None Game No. 102 Rogue 102 Adventurer 0 Explorer 0 Win Type - Total 0 Types 0/0/0/0/0/0/0/0/0 Lore% 40 Gallery% 41 Achievement% 33 Wizard Run 0 Options --------- ASCII 0 Keyboard 0 Movement Numpad Keybinds 0 Fullscreen 2 Font 24/Smallcaps Map View 76x50 Tactical HUD 1 Map Filters NONE Filters NONE Steam 1 RUN: d1daf46f-5775-4964-89b0-5b60752226db